Cogmind - Beta 15 @@@ ROGUE MODE // 2025.07.04 @ 16:14:56 Player: Wall-e Result: Destroyed by CN-FP6(R) with Subdweller Machine Gun Performance ------------- Evolutions (0) 0 Regions Visited (2) 400 Robots Destroyed (22) 110 Value Destroyed (436) 436 Prototype IDs (0) 0 Alien Tech Used (0) 0 Bonus (0) 0 TOTAL SCORE: 946 Bonus ------- None Cogmind --------- Core Integrity 0/250 Matter 282/300 Energy 99/100 System Corruption 0% Temperature Cool (0) Movement Core (50) Location -10/Subcaves Parts ------- > --- POWER (1) -------- (None) > --- PROPULSION (2) --- (None) > --- UTILITY (2) ------ Signal Interpreter > --- WEAPON (2) ------- (None) > --- INVENTORY (5) ---- Light Ion Engine Aluminum Leg Wheel Scrap Shield Peak State ------------ > --- POWER ------------ Ion Engine > --- PROPULSION ------- Aluminum Leg Aluminum Leg > --- UTILITY ---------- Small Storage Unit Improved Terrain Scanner > --- WEAPON ----------- EM Pulse Gun Assault Rifle > --- INVENTORY -------- Light Ion Engine Compact Wheel Compact Wheel Medium Laser [Rating: 9] Favorites ----------- Power Ion Engine Engine Ion Engine Propulsion Aluminum Leg Leg Aluminum Leg Wheel Compact Wheel Utility Sensor Array Device Sensor Array Storage Huge Storage Unit Processor Signal Interpreter Weapon EM Pulse Gun Energy Gun EM Pulse Gun Ballistic Gun Assault Rifle Ballistic Cannon Light Cannon Special Weapon Mining Laser Build | -11 -10 -10 ------- Run | Yrd Mat Sub Slots Evolved . | . . . Power . | . . . Propulsion . | . . . Utility . | . . . Weapon . | . . . Parts Attached 16 | 7 9 . Power 1 | 1 . . Engine 1 | 1 . . Core . | . . . Reactor . | . . . Propulsion 4 | 2 2 . Treads . | . . . Leg 2 | 2 . . Wheel 2 | . 2 . Hover . | . . . Flight . | . . . Utility 5 | 2 3 . Device 2 | 1 1 . Storage 2 | 1 1 . Processor 1 | . 1 . Hackware . | . . . Protection . | . . . Artifact . | . . . Weapon 6 | 2 4 . Energy Gun 3 | 1 2 . Energy Cannon . | . . . Ballistic Gun 1 | 1 . . Ballistic Cannon 1 | . 1 . Launcher . | . . . Special Weapon 1 | . 1 . Impact Weapon . | . . . Slashing Weapon . | . . . Piercing Weapon . | . . . Special Melee Weapon . | . . . Unidentified Prototypes . | . . . Parts Lost 6 | . 2 4 Power . | . . . Propulsion 2 | . . 2 Utility 1 | . 1 . Weapon 3 | . 1 2 Highest Loss Streak 4 | . 1 4 To Critical Strikes . | . . . Average Backups 10 | 3 10 16 Power 1 | . 1 1 Propulsion 2 | 1 2 4 Utility 3 | . 3 6 Weapon 3 | . 3 4 Tool/Special . | . . . Unused Backups 14 | . 1 13 Power 2 | . . 2 Propulsion 2 | . . 2 Utility 7 | . 1 6 Weapon 3 | . . 3 Tool/Special . | . . . Average Slot Usage (%) 99 | . 99 100 Engine 14 | . 14 14 Leg 25 | . 27 . Wheel 2 | . . 28 Device 12 | . 13 . Storage 14 | . 14 14 Processor 1 | . . 14 Energy Gun 12 | . 13 5 Ballistic Gun 8 | . 8 14 Ballistic Cannon 6 | . 6 7 Peak Build Rating 9 | 9 9 9 Average Rating 7 | 5 7 8 On Entrance 5 | . 9 8 Naked Turns . | . . . Heaviest Build 91 | 15 91 90 Greatest Support 32 | 20 32 32 Greatest Overweight (x) 5 | 1 4 5 Average Overweight (x) 1 | . 1 2 Largest Inventory Capacity 25 | 8 25 25 Average Capacity 17 | 7 17 24 Most Carried 19 | 4 15 19 Average Carried 10 | 3 10 17 Final Capacity 25 | 8 25 5 Final Carried 15 | 4 15 5 Class Distribution -------------------- 100% | Mutant Dominant Class ---------------- Mutant | -10/Materials Mutant | -10/Subcaves Resources | -11 -10 -10 ----------- Run | Yrd Mat Sub Matter Collected 528 | 251 187 90 Remotely . | . . . Salvage Created 829 | 59 742 28 Parts 46 | 7 36 3 Haulers Intercepted . | . . . Recyclers Shooed 2 | 1 1 . Parts Field Recycled . | . . . Retrieved Matter . | . . . Parts Self-Destructed 2 | . . 2 Prevented . | . . . Kills | -11 -10 -10 ------- Run | Yrd Mat Sub Combat Hostiles Destroyed 13 | . 12 1 Guns 12 | . 11 1 Cannons 1 | . 1 . Classes Destroyed 7 | 1 5 1 Tunneler 2 | 2 . . Recycler 3 | . 3 . Operator 1 | . 1 . Watcher 3 | . 3 . Swarmer 6 | . 6 . Grunt 6 | . 6 . Subdweller 1 | . . 1 Best Kill Streak 3 | 1 3 1 Combat Bots Only 3 | . 3 1 Max Kills in Single Turn 2 | 1 2 1 Gunslinging . | . . . Exploded . | . . . Melee . | . . . Uniques/NPCs Destroyed . | . . . Combat | -11 -10 -10 -------- Run | Yrd Mat Sub Hostile Shots Fired 71 | . 45 26 Missed 23 | . 14 9 Hits 48 | . 31 17 Projectile 48 | . 31 17 AOE 1 | . . 1 Critical Strikes 3 | . 1 2 Damage Taken 833 | . 392 441 Core 256 | . 130 126 Absorbed by Shields . | . . . Regen/Repaired (Parts) 95 | . 95 . Core Remaining (%) 100 | 100 . . Volleys Fired 92 | 16 63 13 Largest 2 | 1 2 2 Hottest 100 | 40 100 100 Shots Fired 142 | 16 103 23 Gun 123 | 16 93 14 Cannon 14 | . 7 7 Launcher . | . . . Special 5 | . 3 2 Kinetic 39 | 1 21 17 Thermal 10 | . 8 2 Explosive . | . . . Electromagnetic 93 | 15 74 4 Robot Hit Streak 19 | 3 7 19 Robot Miss Streak 8 | 3 8 1 Penetration Max . | . . . Secondary Targets . | . . . Shots Hit Robots 73 | 8 47 18 Core Hits 29 | 2 25 2 Critical Kills . | . . . Critical Parts Destroyed . | . . . Critical Strikes 2 | . 2 . Corrupt 2 | . 2 . Melee Attacks . | . . . Impact . | . . . Slashing . | . . . Piercing . | . . . Sneak Attacks . | . . . Combat Hostiles . | . . . Follow-up Attacks . | . . . Damage Inflicted 1001 | 105 770 126 Guns 867 | 105 670 92 Cannons 107 | . 73 34 Explosions 27 | . 27 . Melee . | . . . Ramming . | . . . Kinetic 239 | . 146 93 Thermal 27 | . 27 . Explosive . | . . . Electromagnetic 735 | 105 597 33 Impact . | . . . Slashing . | . . . Piercing . | . . . Highest Corruption . | . . . Average Corruption . | . . . Corruption Purged . | . . . Corruption Blocked . | . . . Overload Shots . | . . . Overflow Damage 9 | . 9 . Projectiles . | . . . Explosions 9 | . 9 . Melee . | . . . Knockbacks 3 | . 2 1 Impact . | . . . Kinetic 3 | . 2 1 Secondary . | . . . Self-Inflicted Damage 26 | . 26 . Shots 1 | . 1 . Rammed . | . . . Targets Rammed . | . . . Kicked . | . . . Crushed . | . . . Highest Temperature 259 | . 126 259 Average Temperature 47 | . 34 146 Received Heat Transfer 777 | . 150 627 Siege Activations . | . . . Martial Activations . | . . . Shielding Activations . | . . . Robots Disrupted 1 | . 1 . Combat Hostiles 1 | . 1 . Robots Corrupted 1 | . 1 . Combat Hostiles . | . . . Parts Fried 3 | . 3 . Impact Corruptions . | . . . Robots Melted . | . . . Combat Hostiles . | . . . Parts Melted . | . . . Heat Transferred 50 | . 50 . Parts Sabotaged . | . . . Parts Stolen . | . . . Parts Stripped . | . . . Power Chain Reactions 1 | . 1 . Alert | -11 -10 -10 ------- Run | Yrd Mat Sub Maximum Alert Level . | . . . Low Security (%) 100 | 100 100 . Level 1 . | . . . Level 2 . | . . . Level 3 . | . . . Level 4 . | . . . Level 5 . | . . . High Security . | . . . Max Security . | . . . Peak Influence 83 | 5 83 . Initial . | . . . Average 18 | . 20 . Influence Increases 414 | 10 404 . Destroy 0b10 Robot/C 240 | . 240 . Destroy 0b10 Robot/NC 45 | 10 35 . Destroy Leader 56 | . 56 . Successful Hack 24 | . 24 . Disable Machine 15 | . 15 . Destroy Structure 4 | . 4 . Lose Combat Pursuer 30 | . 30 . Influence Decreases 414 | 10 404 . Time Decay 394 | 10 384 . Lost Part 20 | . 20 . Squads Dispatched 1 | . 1 . Investigation . | . . . Extermination . | . . . Reinforcement 1 | . 1 . Assault . | . . . Garrison . | . . . Intercept . | . . . Searches Triggered . | . . . Construction Impeded . | . . . Haulers Reinforced . | . . . Active Scanning Responses . | . . . Cargo Convoy Interrupts . | . . . Stealth | -11 -10 -10 --------- Run | Yrd Mat Sub Distress Signals 1 | . 1 . Communications Jammed . | . . . Distress Signals . | . . . Times Spotted 38 | . 29 9 Peak Tracking Total 4 | . 4 4 Tactical Retreats 2 | . 2 . Traps | -11 -10 -10 ------- Run | Yrd Mat Sub Traps Triggered 1 | . 1 . Indirectly . | . . . Trap Hack Attempts . | . . . Triggered . | . . . Disarmed . | . . . Reprogrammed . | . . . Reused . | . . . Traps Extracted . | . . . Installed . | . . . Triggered . | . . . Machines | -11 -10 -10 ---------- Run | Yrd Mat Sub Machines Disabled 1 | . 1 . Max in Single Turn 1 | . 1 . Machines Repaired . | . . . Machines Dismantled . | . . . Machines Sabotaged . | . . . Overloaded Fab Kills . | . . . Hacking | -11 -10 -10 --------- Run | Yrd Mat Sub Machines Accessed 7 | . 7 . Terminals 6 | . 6 . Fabricators . | . . . Repair Stations 1 | . 1 . Recycling Units . | . . . Scanalyzers . | . . . Garrison Access . | . . . Total Hacks 31 | . 31 . Successful 17 | . 17 . Failed 14 | . 14 . Catastrophic . | . . . Database Lockouts . | . . . Manual 24 | . 24 . Terminals 26 | . 26 . Fabricators . | . . . Repair Stations 5 | . 5 . Recycling Units . | . . . Scanalyzers . | . . . Garrison Access . | . . . Terminal Hacks 1 | . 1 . Zone Layout 1 | . 1 . Fabricator Hacks . | . . . Repair Station Hacks 4 | . 4 . Scan Component 2 | . 2 . Repair 2 | . 2 . Recycling Unit Hacks . | . . . Scanalyzer . | . . . Garrison Access Hacks . | . . . Unauthorized Hacks 12 | . 12 . Terminals 12 | . 12 . Track 3 | . 3 . Assimilate 2 | . 2 . Botnet 6 | . 6 . Operators 1 | . 1 . Fabricators . | . . . Repair Stations . | . . . Recycling Units . | . . . Scanalyzers . | . . . Garrison Access . | . . . Data Cores Recovered . | . . . Used . | . . . Hacking Detections 7 | . 7 . Full Trace Events . | . . . Feedback Events . | . . . Feedback Blocked . | . . . Robot Schematics Acquired . | . . . Robots Built . | . . . Authchips . | . . . Time . | . . . Total Robot Build Rating . | . . . Part Schematics Acquired . | . . . Parts Built . | . . . Authchips . | . . . Time . | . . . Total Part Build Rating . | . . . Parts Repaired 2 | . 2 . Time 52 | . 52 . Parts Recycled . | . . . Recycled Matter . | . . . Retrieved Matter . | . . . Retrieved Components . | . . . Parts Scanalyzed . | . . . Part Schematics Acquired . | . . . Parts Damaged . | . . . Bothacking | -11 -10 -10 ------------ Run | Yrd Mat Sub Used RIF Installer . | . . . Robots Hacked . | . . . Non-combat . | . . . Combat . | . . . Robot Hacks Applied . | . . . Relay Couplers Released . | . . . Fabnet Peak Effective % . | . . . Robots Rewired . | . . . Allies Hacked . | . . . Hacks Repelled . | . . . Allies | -11 -10 -10 -------- Run | Yrd Mat Sub Total Allies 1 | . 1 . Largest Group 1 | . 1 1 Highest-Rated Group 10 | . 10 10 Highest-Rated Ally 10 | . 10 10 Total Orders . | . . . Ally Attacks . | . . . Total Damage . | . . . Kills . | . . . Allies Corrupted . | . . . Allies Melted . | . . . Intel | -11 -10 -10 ------- Run | Yrd Mat Sub Active Infowar (turns) 2420 | 19 2401 . Sensors 2042 | . 2042 . Terrain 378 | 19 359 . Robot Analysis Total . | . . . Derelict Logs Recovered . | . . . Drone Launches . | . . . Drone Recoveries . | . . . Exploration | -11 -10 -10 ------------- Run | Yrd Mat Sub Turns Passed 2886 | 170 2480 236 Spaces Moved 1099 | 108 859 132 Core 12 | 11 . 1 Treads . | . . . Legs 950 | 97 853 . Wheels 137 | . 6 131 Hover . | . . . Flight . | . . . Fastest Speed 50 | 50 120 50 Average Speed 204 | 114 227 129 Slowest Speed 400 | 120 400 175 Overloaded Moves . | . . . Propulsion Burnouts . | . . . Robots Hopped . | . . . Potential Cave-ins . | . . . Cave-ins Triggered . | . . . Exploration Rate (%) 34 | 5 91 6 Regions Visited 2 Branch Regions 1 Pre-discovered Areas . | . . . Known Exits Taken 1 | . 1 . Unknown Exits Taken 1 | 1 . . Scrap Searched . | . . . Spaces Dug 1 | . 1 . Terrain Destroyed 3 | . 3 . Melee . | . . . Projectile 1 | . 1 . AOE 2 | . 2 . Terrain Rammed . | . . . Walls Destroyed . | . . . Machines Disabled . | . . . Actions | -11 -10 -10 --------- Run | Yrd Mat Sub Total 1576 | 134 1273 169 Wait 324 | . 308 16 Move 1097 | 107 858 132 Hop . | . . . Pick Up 21 | 4 14 3 Fast Attach 10 | 7 3 . Attach 2 | . 2 . Detach . | . . . Swap 12 | . 9 3 Drop 5 | . 3 2 Fire 92 | 16 63 13 Melee . | . . . Ram . | . . . Kick . | . . . Crush . | . . . Escape Stasis . | . . . Rewire 13 | . 13 . Trap . | . . . Miscellaneous . | . . . Route ------- -11/Scrapyard -10/Materials (discovered 5 exits: [*Mat x2] / [*Min x2] / *Sub) -10/Subcaves History --------- Turn | Location | Event 37 | -11/Scrapyard | Discovered new exit (range 16) 171 | -11/Scrapyard | Entered Materials 313 | -10/Materials | Build established: Mutant 339 | -10/Materials | Discovered new exit (range 7) 506 | -10/Materials | Discovered new exit (range 13) 1355 | -10/Materials | Discovered new exit (range 10) 1629 | -10/Materials | Repaired Aluminum Leg 1656 | -10/Materials | Repaired Aluminum Leg 1681 | -10/Materials | Core integrity fell below 50% 1905 | -10/Materials | Discovered new exit (range 16) 2389 | -10/Materials | Discovered new exit (range 11) 2577 | -10/Materials | Identified exit to Subcaves 2651 | -10/Materials | Entered Subcaves 2651 | -10/Subcaves | Accompanied by 1 ally 2652 | -10/Subcaves | Shifting Twisted Machinery released Flamer 2812 | -10/Subcaves | Shifting Twisted Machinery released Sub. Beam Cannon 2829 | -10/Subcaves | A swath of the cavern ceiling suddenly collapsed 2879 | -10/Subcaves | Ambushed by swarm of Subdwellers 2881 | -10/Subcaves | Core integrity fell below 20% 2887 | -10/Subcaves | Destroyed by CN-FP6(R) with Subdweller Machine Gun Last Messages --------------- 02823_ Acquired 3 matter. A swath of the cavern ceiling suddenly collapses. A mess of Twisted Machinery falls from the cavern ceiling. CN-FP6(R) comes tumbling into view. 02881_ S8-CTX(R) emerges from the Twisted Machinery. 02882_ EM Pulse Gun destroyed. 02883_ VR-DGW(R) emerges from the Twisted Machinery. 02884_ KW-RTQ(R) emerges from the Twisted Machinery. 02884_ Com. Wheel destroyed. 02885_ Assault Rifle destroyed. 02886_ 88-DZA(R) emerges from the Twisted Machinery. 02886_ Com. Wheel destroyed. 02886_ Dropped Huge Storage Unit. 02886_ Dropped Ion Engine. Map ----- +----------------------------------------------------+ | ????????????????#% ## ??????????????????????? | | ????????????????# "#" ##??????????????????????? | | ????????????????#"&="# #??????????????????????? | | ????????????????#" #" = "####???????????????????? | | ????????????????#""! "" #???????????????????? | | ???????????????#" "#" "##???????????????????? | | ??????????????# ""###" "#????????????????????? | | ??????????????####?##" !*"##????????????????????? | | ???????????????????# ""! ! "#????????????????????? | | ?????????????##????##%[* ""#????????????????????? | | ??? # # ????## ?#####"%= "##????????????????????? | | ?? ##"###""" " ! ##????????????????????? | | ?? ##"##" ] "" ## ##????????????????? | | ?? ##""# "" ##???????????????? | | ???????# #""""#" "### #??????????? | | ????????????####"" "#### #??????????? | | ?????????????##"### ""#?? #####??????????? | | ?????????????######"" "#?? ! ##??????????????? | | ??????????????####" "##??#*&& ##???????????????? | | ????????????????# " ##????%!%& #????????????????? | | ????????????????# " "#?????]&# #???????????????? | | ????????????????# ##????#[%*# #??????????????? | | ????????????????# ###### #####??????????????? | | ???????????????## # ##!* ;##?????????????????? | | ???????????????# *]!!] #?????????????????? | | ??????????????# ## R=!@| #?????????????????? | | ??????????????###?## RRR#!= #????????????????? | | ???????????????????## "!## ## #????????????????? | | ????????????????????# ""#?##??? #????????????????? | | ???????????????????# ###????????????????????????? | | ??????????????????# ##??????????????????????????? | | ??????????????????# #????????????????????????????? | | ??????????????????##?????????????????????????????? | | ?????????????????????????????????????????????????? | | ?????????????????????????????????????????????????? | | ?????????????????????????????????????????????????? | | ?????????????????????????????????????????????????? | | ?????????????????????????????????????????????????? | | ?????????????????????????????????????????????????? | | ?????????????????????????????????????????????????? | | ?????????????????????????????????????????????????? | | ?????????????????????????????????????????????????? | | ?????????????????????????????????????????????????? | | ?????????????????????????????????????????????????? | | ?????????????????????????????????????????????????? | | ?????????????????????????????????????????????????? | | ?????????????????????????????????????????????????? | | ?????????????????????????????????????????????????? | | ?????????????????????????????????????????????????? | | ?????????????????????????????????????????????????? | +----------------------------------------------------+ Best States ------------- Heat Dissipation 25 Energy Generation 10 Energy Capacity 250 Matter Stores 300 Matter Capacity 300 Sight Range 16 Robot Scan Range 14 Terrain Scan Range 16 Terrain Scan Density 10 Evasion (%) 55 Item Schematics ----------------- None Robot Schematics ------------------ None Fabricated ------------ Nothing Repaired ---------- Aluminum Leg | 20% | -10/Materials Aluminum Leg | 74% | -10/Materials Alien Tech Used ----------------- None Achievements -------------- None Challenges ------------ None Game ------ Seed StorageCobblerCore Manual? 0 Play Time 00:22:19 Cumulative 522.1 hours Start 2025.07.04 @ 15:55:15 End 2025.07.04 @ 16:14:56 Sessions 1 Manual Loads 0 Difficulty Rogue Special Mode None Game No. 187 Rogue 80 Adventurer 8 Explorer 99 Win Type - Total 17 Types 8/1/6/2/0/0/0/0/0/0 Lore% 48 Gallery% 63 Achievement% 79 Wizard Run 0 Options --------- Layout 1 ASCII 0 Keyboard 0 Movement Arrows Keybinds 0 Fullscreen 1 Font 24/Smallcaps Map View 50x35 Zoom Use 0% Tactical HUD 1 Map Filters NONE Filters NONE Steam 1 RUN: 6bbe3cac-142c-41d9-a958-ce4919499769